[Event "German Bundesliga 2024-25"]
[Site "Germany"]
[Date "2025.01.12"]
[Round "6"]
[White "Kraemer, Martin"]
[Black "Aronian, Levon"]
[Result "1/2-1/2"]
[Annotator "TA"]
[ECO "C47"]
[WhiteElo "2579"]
[BlackElo "2747"]
[PlyCount "29"]
[EventDate "2024.09.27"]
[EventType "team-tourn"]
[EventCountry "GER"]
[SourceTitle "playchess.com"]
[Source "ChessBase"]
[SourceQuality "1"]
[WhiteTeam "Heimbach-Weis-Neuwied"]
[BlackTeam "Baden-Baden"]
[TimeControl "40/5400+30:1800+30"]

{[%evp 9,29,0,39,0,0,0,0,0,7,0,0,9,33,33,25,27,26,0,12,0,28,0]} 1. e4 {[%emt 0:01:00]} e5 {[%emt 0:01:00]} 2. Nf3 {[%emt 0:00:00]} Nc6 {[%emt 0:00:00]} 3. Nc3 {[%emt 0:00:00]} Nf6 {[%emt 0:00:00][%cal Bg8f6,Bf6e4,Be4c3,Bc3d1][%mdl 32]} 4. d4 {[%emt 0:00:00]} exd4 {[%emt 0:00:30]} 5. Nxd4 {[%emt 0:00:00]} Nxe4 {[%emt 0:00:00]} 6. Nxc6 {[%emt 0:00:30]} (6. Nxe4 {is more complex.} Qe7 7. f3 d5 8. Bb5) 6... Nxc3 {[%emt 0:00:00]} 7. Nxd8 {[%emt 0:00:00]} Nxd1 {[%emt 0:00:30]} 8. Nxf7 {[%emt 0:00:00]} Kxf7 {[%emt 0:00:00][%cal Be8f7,Bf7f6,Bf6g6][%mdl 32]} 9. Bc4+ {[%emt 0:00:30]} Kf6 {[%emt 0:00:00][%cal Od7d5]} 10. h4 {[%emt 0:00:30]} Bc5 {[%emt 0:11:30]} 11. Bg5+ {[%emt 0:01:30][%mdl 1024] White has compensation.} Kg6 {[%emt 0:00:30]} 12. Bd3+ {[%emt 0:09:30]} Kf7 {[%emt 0:00:30]} 13. Bc4+ {[%emt 0:00:30]} Kg6 {[%emt 0:00:30]} 14. Bd3+ {[%emt 0:00:30]} Kf7 {[%emt 0:00:00]} 15. Bc4+ {[%emt 0:00:00]} 1/2-1/2

[Event "German Bundesliga 2024-25"]
[Site "Germany"]
[Date "2025.01.12"]
[Round "6"]
[White "Dautov, Rustem"]
[Black "Anton Guijarro, David"]
[Result "1/2-1/2"]
[Annotator "TA"]
[ECO "D39"]
[WhiteElo "2568"]
[BlackElo "2671"]
[PlyCount "60"]
[EventDate "2024.09.27"]
[EventType "team-tourn"]
[EventCountry "GER"]
[SourceTitle "playchess.com"]
[Source "ChessBase"]
[SourceQuality "1"]
[WhiteTeam "Deizisau"]
[BlackTeam "Viernheim"]
[TimeControl "40/5400+30:1800+30"]

{[%evp 16,60,6,20,19,33,29,22,28,23,43,35,40,40,35,31,25,32,29,35,61,21,22,32,23,24,23,18,28,21,18,22,22,23,31,22,47,0,0,0,0,0,0,0,0,0,7]} 1. d4 {[%emt 0:01:00]} Nf6 {[%emt 0:01:00]} 2. Nf3 {[%emt 0:00:30]} d5 {[%emt 0:00:30]} 3. c4 {[%emt 0:00:00]} e6 {[%emt 0:00:30]} 4. Nc3 {[%emt 0:00:00]} Bb4 {[%emt 0:00:30]} 5. Bg5 {[%emt 0:00:30]} dxc4 {[%emt 0:00:30]} 6. e4 {[%emt 0:00:30]} c5 {[%emt 0:00:30]} 7. Bxc4 {[%emt 0:00:30]} cxd4 {[%emt 0:00:30]} 8. Nxd4 {[%emt 0:00:30]} Qa5 {[%emt 0:00:30]} 9. Bd2 {[%emt 0:00:30]} (9. Bxf6 {is more complex.} Bxc3+ 10. bxc3 Qxc3+ 11. Kf1) 9... Qc5 {[%emt 0:00:30][%csl LRc4,LRd4]} 10. Bb5+ {[%emt 0:00:30]} Bd7 {[%emt 0:00:30]} 11. Nb3 {[%emt 0:00:30]} Qc7 {[%emt 0:00:30]} 12. O-O {[%emt 0:01:30]} O-O {[%emt 0:01:30][%cal Bh8f8,Bf8d8,Bd8d5][%mdl 32] Strongly threatening ...Bxc3.} 13. Rc1 {[%emt 0:01:30][%cal Oc3d5] Nd5! is the strong threat.} Nc6 {[%emt 0:00:30]} 14. Qe2 {[%emt 0:01:30]} Rfd8 {[%emt 0:01:30]} 15. Bg5 {[%emt 0:05:30]} Be7 {[%emt 0:01:30]} 16. Be3 {[%emt 0:01:30]} Rac8 {[%emt 0:03:30]} 17. f4 {[%emt 0:20:30]} Be8 {[%emt 0:03:30]} 18. e5 {[%emt 0:08:30]} Nd5 {[%emt 0:00:30]} 19. Nxd5 {[%emt 0:00:30]} Rxd5 {[%emt 0:00:30]} 20. Bd3 {[%emt 0:02:30]} Qb8 {[%emt 0:02:30]} 21. Be4 {[%emt 0:04:30]} Rdd8 {[%emt 0:00:30]} 22. a3 {[%emt 0:04:30]} b6 {[%emt 0:03:30]} 23. Qf3 {[%emt 0:20:30]} Na5 {[%emt 0:02:30]} 24. Nxa5 {[%emt 0:05:59]} bxa5 {[%emt 0:00:00]} 25. Qf2 {[%emt 0:01:09]} Qb3 {[%emt 0:11:00]} 26. h3 {[%emt 0:00:10]} (26. Rxc8 $14 Rxc8 27. Bxa7) 26... f5 $11 {[%emt 0:29:30]} 27. exf6 {[%emt 0:01:54]} Bxf6 {[%emt 0:00:30]} 28. Rxc8 {[%emt 0:04:00]} Rxc8 {[%emt 0:00:30]} 29. Bd4 {[%emt 0:00:28]} Bxd4 {[%emt 0:00:00]} 30. Qxd4 {[%emt 0:00:35][%cal Of4f5]} Qb6 {[%emt 0:00:00]} 1/2-1/2

[Event "German Bundesliga 2024-25"]
[Site "Germany"]
[Date "2025.01.12"]
[Round "6"]
[White "Ferreira, Jorge Viterbo"]
[Black "Svidler, Peter"]
[Result "1/2-1/2"]
[Annotator "TA"]
[ECO "B51"]
[WhiteElo "2523"]
[BlackElo "2698"]
[PlyCount "48"]
[EventDate "2024.09.27"]
[EventType "team-tourn"]
[EventCountry "GER"]
[SourceTitle "playchess.com"]
[Source "ChessBase"]
[SourceQuality "1"]
[WhiteTeam "Heimbach-Weis-Neuwied"]
[BlackTeam "Baden-Baden"]
[TimeControl "40/5400+30:1800+30"]

{[%evp 17,48,0,0,-12,16,11,11,6,6,5,12,5,16,4,20,3,6,0,0,0,0,-9,-11,-26,-6,-61,-45,-59,-2,-18,0,-10,-7]} 1. e4 {[%emt 0:01:00]} c5 {[%emt 0:02:00]} 2. Nf3 {[%emt 0:00:00]} d6 {[%emt 0:00:00]} 3. Bb5+ {[%emt 0:00:00]} Nd7 {[%emt 0:01:00]} 4. O-O {[%emt 0:02:30]} a6 {[%emt 0:00:30]} 5. Bxd7+ {[%emt 0:03:30]} Bxd7 {[%emt 0:00:30]} 6. c3 {[%emt 0:00:30]} Nf6 {[%emt 0:09:30]} 7. Re1 {[%emt 0:00:30]} Bc6 {[%emt 0:00:00]} 8. d4 {[%emt 0:00:30]} Bxe4 {[%emt 0:08:00]} 9. Bg5 {[%emt 0:00:00]} Bd5 {[%emt 0:10:30]} 10. c4 {[%emt 0:00:00] Against e6} Bxf3 {[%emt 0:06:30]} (10... Bxc4 {keeps more tension.} 11. Nc3 Qd7 12. Qc2 cxd4 13. Na4 d3) 11. Qxf3 {[%emt 0:00:30] and dxc5 would now be decisive} cxd4 {[%emt 0:00:30]} 12. Bxf6 {[%emt 0:00:30]} gxf6 {[%emt 0:02:30]} 13. Qxf6 {[%emt 0:00:30]} Rg8 {[%emt 0:00:30]} 14. Qxd4 {[%emt 0:01:30]} Bg7 {[%emt 0:00:30]} 15. Qd2 {[%emt 0:01:30]} Rc8 {[%emt 0:01:30]} 16. Qb4 {[%emt 0:15:30][%cal Ob1c3]} Qd7 {[%emt 0:08:30]} 17. Nd2 {[%emt 0:13:30]} Kf8 {[%emt 0:05:30]} 18. Re4 {[%emt 0:16:30]} Bf6 {[%emt 0:03:30]} 19. Rae1 {[%emt 0:01:30]} b5 {[%emt 0:03:30]} 20. g3 {[%emt 0:08:30]} Rg5 {[%emt 0:01:30]} 21. Nf3 {[%emt 0:06:30]} ({White should play} 21. Qa3 $11) 21... Rgc5 {[%emt 0:11:30]} 22. b3 {[%emt 0:11:21]} bxc4 {[%emt 0:07:21]} (22... Qh3 $15 23. Rf4 h5) 23. bxc4 $11 {[%emt 0:01:45]} a5 {[%emt 0:05:26]} 24. Qb3 {[%emt 0:00:39]} d5 {[%emt 0:04:42]} 1/2-1/2

[Event "German Bundesliga 2024-25"]
[Site "Germany"]
[Date "2025.01.12"]
[Round "6"]
[White "Nasuta, Grzegorz"]
[Black "Vachier-Lagrave, Maxime"]
[Result "1/2-1/2"]
[Annotator "TA"]
[ECO "B33"]
[WhiteElo "2497"]
[BlackElo "2737"]
[PlyCount "75"]
[EventDate "2024.09.27"]
[EventType "team-tourn"]
[EventCountry "GER"]
[SourceTitle "playchess.com"]
[Source "ChessBase"]
[SourceQuality "1"]
[WhiteTeam "Heimbach-Weis-Neuwied"]
[BlackTeam "Baden-Baden"]
[TimeControl "40/5400+30:1800+30"]

{[%evp 25,75,25,64,47,57,50,47,44,52,57,71,56,45,40,40,33,42,40,48,36,57,0,0,0,0,0,0,0,0,0,0,0,0,0,0,-3,-3,-3,0,0,0,0,0,0,0,0,0,0,0,0,0,0]} 1. e4 {[%emt 0:01:00]} c5 {[%emt 0:01:00]} 2. Nf3 {[%emt 0:00:00]} Nc6 {[%emt 0:00:00]} 3. d4 {[%emt 0:08:00]} cxd4 {[%emt 0:00:00]} 4. Nxd4 {[%emt 0:00:00]} Nf6 {[%emt 0:00:30]} 5. Nc3 {[%emt 0:00:00]} e5 {[%emt 0:00:30]} 6. Ndb5 {[%emt 0:00:00]} d6 {[%emt 0:00:30]} 7. Bg5 {[%emt 0:02:00]} a6 {[%emt 0:00:30]} 8. Na3 {[%emt 0:00:00]} b5 {[%emt 0:00:30]} 9. Nd5 {[%emt 0:00:00]} Be7 {[%emt 0:00:00]} 10. Bxf6 {[%emt 0:00:30]} Bxf6 {[%emt 0:00:00]} 11. c3 {[%emt 0:00:30]} Ne7 {[%emt 0:00:00]} 12. Nxf6+ {[%emt 0:06:30]} gxf6 {[%emt 0:00:00]} 13. Be2 {[%emt 0:00:30]} f5 {[%emt 0:08:30]} 14. exf5 {[%emt 0:12:30] White is more active.} Bxf5 {[%emt 0:00:00]} 15. Nc2 {[%emt 0:00:00]} O-O {[%emt 0:01:00]} 16. O-O {[%emt 0:01:00]} Qb6 {[%emt 0:03:30]} 17. Qd2 {[%emt 0:06:30]} Kh8 {[%emt 0:03:30]} 18. Rfd1 {[%emt 0:22:30]} d5 {[%emt 0:03:30]} 19. a4 {[%emt 0:06:30]} bxa4 {[%emt 0:00:30]} 20. Ne3 {[%emt 0:01:30][%cal Oe3f5]} Be4 {[%emt 0:06:30]} 21. Bd3 {[%emt 0:02:30]} f5 {[%emt 0:04:30]} 22. Bxe4 {[%emt 0:14:49]} fxe4 {[%emt 0:00:30]} 23. Nxd5 {[%emt 0:01:24]} ({Much less strong is} 23. Rxa4 Rad8 $16) (23. h3 $14) 23... Nxd5 $11 {[%emt 0:00:30]} 24. Qxd5 {[%emt 0:00:06] aiming for Rd2.} Qxf2+ {[%emt 0:00:00]} 25. Kh1 {[%emt 0:00:04]} Qf5 {[%emt 0:04:00]} 26. Re1 {[%emt 0:04:37]} (26. Rxa4 $2 Qf1+ 27. Rxf1 Rxf1#) 26... e3 {[%emt 0:06:30]} 27. Qc5 {[%emt 0:05:01]} (27. Rxe3 $2 {leads to mate.} Qf1+ 28. Rxf1 Rxf1#) 27... Rab8 {[%emt 0:00:30][%cal Ba8b8,Bb8b2,Bb2g2,Bg2g3,Bg3c3,Bc3c2][%mdl 32]} 28. Qxe3 {[%emt 0:00:06]} Rxb2 {[%emt 0:00:30][%cal Oa4a3]} 29. h3 {[%emt 0:05:05]} Rg8 {[%emt 0:02:30]} 30. Qxe5+ {[%emt 0:00:25]} Qxe5 {[%emt 0:00:00]} 31. Rxe5 {[%emt 0:00:04]} Rbxg2 {[%emt 0:02:00][%mdl 4096] Endgame KRR-KRR. Black is a pawn up.} 32. Ra5 {[%emt 0:00:14]} R2g3 {[%emt 0:00:30][%cal Rg3h3]} 33. Kh2 $1 {[%emt 0:00:05]} Rxc3 {[%emt 0:00:30][%cal Oa4a3]} 34. R5xa4 {[%emt 0:00:08]} Rc2+ {[%emt 0:00:30]} 35. Kh1 {[%emt 0:00:09]} Rg3 {[%emt 0:00:00]} 36. h4 {[%emt 0:02:27]} Rh3+ {[%emt 0:02:00]} 37. Kg1 {[%emt 0:00:04]} Rc8 {[%emt 0:00:30]} 38. Kg2 {[%emt 0:00:37]} 1/2-1/2

[Event "German Bundesliga 2024-25"]
[Site "Germany"]
[Date "2025.01.12"]
[Round "6"]
[White "Winterberg, Lukas"]
[Black "Deac, Bogdan-Daniel"]
[Result "1/2-1/2"]
[Annotator "TA"]
[ECO "E10"]
[WhiteElo "2410"]
[BlackElo "2687"]
[PlyCount "73"]
[EventDate "2024.09.27"]
[EventType "team-tourn"]
[EventCountry "GER"]
[SourceTitle "playchess.com"]
[Source "ChessBase"]
[SourceQuality "1"]
[WhiteTeam "Heimbach-Weis-Neuwied"]
[BlackTeam "Baden-Baden"]
[TimeControl "40/5400+30:1800+30"]

{[%evp 9,73,16,22,16,41,15,16,14,18,18,30,14,29,35,39,30,26,45,58,46,69,-3,0,0,0,-36,0,-7,0,-25,0,0,-6,-18,0,0,0,0,0,0,0,0,0,0,0,0,0,0,0,0,0,0,0,0,0,0,0,0,0,0,0,0,0,0,0,0]} 1. d4 {[%emt 0:01:00]} Nf6 {[%emt 0:01:00]} 2. Nf3 {[%emt 0:00:00]} e6 {[%emt 0:00:30]} 3. c4 {[%emt 0:00:00]} h6 {[%emt 0:00:00]} 4. Nc3 {[%emt 0:00:30]} Bb4 {[%emt 0:00:00]} 5. Bd2 {[%emt 0:01:30]} c5 {[%emt 0:04:30]} 6. e3 {[%emt 0:06:30]} d6 {[%emt 0:11:30]} 7. a3 {[%emt 0:03:30]} Bxc3 {[%emt 0:01:30]} 8. Bxc3 {[%emt 0:00:30]} Ne4 {[%emt 0:00:30]} 9. Qc2 {[%emt 0:01:30]} Nxc3 {[%emt 0:01:30]} 10. Qxc3 {[%emt 0:00:30]} (10. dxc5 $5 dxc5 11. Qxc3 $11) 10... O-O {[%emt 0:00:30]} 11. dxc5 {[%emt 0:03:30]} dxc5 {[%emt 0:00:00]} 12. Bd3 {[%emt 0:08:30]} Nd7 {[%emt 0:01:00]} 13. O-O-O {[%emt 0:05:30]} Qe7 {[%emt 0:27:30]} 14. g4 {[%emt 0:12:30]} b6 {[%emt 0:01:30]} 15. Ne5 {[%emt 0:19:30] White is much more active. The black rooks are passive.} (15. g5 $14) 15... Nxe5 $1 $11 {[%emt 0:06:30]} 16. Qxe5 {[%emt 0:01:30]} Bb7 {[%emt 0:01:30] Wards off Qe4} 17. Be4 {[%emt 0:01:30]} Rad8 {[%emt 0:03:30]} (17... Bxe4 {simplifies} 18. Qxe4 Qh4 19. Qg2 f5) 18. Rxd8 {[%emt 0:02:30]} Rxd8 {[%emt 0:00:30]} 19. Rd1 {[%emt 0:01:30]} Rxd1+ {[%emt 0:04:30]} 20. Kxd1 {[%emt 0:00:30] And now Qb8+ would win.} Bxe4 {[%emt 0:01:30]} 21. Qxe4 {[%emt 0:00:30][%mdl 4096] Endgame KQ-KQ} Qd6+ {[%emt 0:02:30]} 22. Ke2 {[%emt 0:00:30]} Qxh2 {[%emt 0:06:30]} 23. Qa8+ {[%emt 0:00:30]} Kh7 {[%emt 0:00:00] White must now prevent ...Qh3.} 24. Qxa7 {[%emt 0:01:30]} Qg2 {[%emt 0:00:00]} 25. Qxf7 {[%emt 0:01:30]} Qxg4+ {[%emt 0:01:30]} 26. Kd3 $1 {[%emt 0:01:30]} h5 {[%emt 0:00:30]} 27. Qf4 {[%emt 0:05:30]} Qd1+ {[%emt 0:05:44]} 28. Ke4 {[%emt 0:04:45]} Qd7 {[%emt 0:10:01]} 29. Kf3 {[%emt 0:03:45]} e5 {[%emt 0:02:08]} 30. Qe4+ {[%emt 0:03:05]} (30. Qxe5 $2 Qg4#) 30... g6 {[%emt 0:01:37]} 31. Kg2 {[%emt 0:01:05]} (31. Qxe5 $2 Qg4#) 31... Qd6 {[%emt 0:00:40]} 32. Qb7+ {[%emt 0:01:45]} Kh6 {[%emt 0:01:18]} 33. Qf7 {[%emt 0:00:38]} Qc6+ {[%emt 0:00:32]} 34. Kh2 {[%emt 0:01:30]} Qd6 {[%emt 0:00:28]} 35. Kg2 {[%emt 0:00:36]} Qc6+ {[%emt 0:00:10]} 36. Kh2 {[%emt 0:00:05]} Qd6 {[%emt 0:00:46] Inhibits Qf8+.} 37. Kg2 1/2-1/2

[Event "German Bundesliga 2024-25"]
[Site "Germany"]
[Date "2025.01.12"]
[Round "6.1"]
[White "Grandelius, Nils"]
[Black "Saric, Ivan"]
[Result "1-0"]
[Annotator "TA"]
[ECO "B92"]
[WhiteElo "2639"]
[BlackElo "2668"]
[PlyCount "65"]
[EventDate "2024.09.27"]
[EventType "team-tourn"]
[EventCountry "GER"]
[SourceTitle "playchess.com"]
[Source "ChessBase"]
[SourceQuality "1"]
[WhiteTeam "Hamburg"]
[BlackTeam "Kirchweyhe"]
[TimeControl "40/5400+30:1800+30"]

{[%evp 18,65,0,6,5,10,86,79,70,92,86,78,87,86,92,101,122,128,151,152,172,170,275,227,237,210,210,215,227,208,220,198,236,244,273,206,208,193,208,204,195,189,636,630,630,631,878,847,1122,1129]} 1. e4 {[%emt 0:00:24]} c5 {[%emt 0:01:14]} 2. Nf3 {[%emt 0:00:16]} d6 {[%emt 0:00:04]} 3. d4 {[%emt 0:00:30]} cxd4 {[%emt 0:00:03]} 4. Nxd4 {[%emt 0:00:09]} Nf6 {[%emt 0:00:05]} 5. Nc3 {[%emt 0:00:06]} a6 {[%emt 0:00:16]} 6. Be2 {[%emt 0:01:39]} e5 {[%emt 0:00:15]} 7. Nb3 {[%emt 0:00:15]} Be7 {[%emt 0:00:04]} 8. Be3 {[%emt 0:00:24]} Be6 {[%emt 0:00:37]} 9. f4 {[%emt 0:00:37]} exf4 {[%emt 0:04:17]} 10. Bxf4 {[%emt 0:00:21]} Nc6 {[%emt 0:00:33]} 11. Qd2 {[%emt 0:00:57]} a5 {[%emt 0:27:00]} (11... d5 $11 {remains equal.}) 12. Nd4 $16 {[%emt 0:19:43]} Nxd4 {[%emt 0:04:04]} 13. Qxd4 {[%emt 0:00:08]} O-O {[%emt 0:00:13][%cal Bh8f8,Bf8c8,Bc8c5][%mdl 32]} 14. O-O-O {[%emt 0:07:42]} a4 {[%emt 0:09:50]} 15. Bxd6 {[%emt 0:08:51] White has more active pieces.} (15. Nxa4 $6 Qa5 16. b3 (16. Bxd6 $2 Bxd6 17. Qxd6 Qxa4 $19) 16... d5 17. exd5 Nxd5 $11) 15... Bxd6 {[%emt 0:05:18]} 16. Qxd6 {[%emt 0:00:08]} Qa5 {[%emt 0:00:43]} 17. a3 {[%emt 0:01:02]} Rfc8 {[%emt 0:00:47]} 18. Qg3 {[%emt 0:09:36]} Rc5 {[%emt 0:03:26]} 19. Rd4 {[%emt 0:01:02]} b5 {[%emt 0:03:42]} (19... Rac8 {might work better.} 20. Kb1 (20. Nxa4 $2 Rxc2+ 21. Kb1 Rxe2 $19) (20. Rxa4 Qxa4 21. Nxa4 Rxc2+ 22. Kb1 Nxe4 $19) 20... Rg5) 20. Rhd1 {[%emt 0:01:31]} Rac8 {[%emt 0:01:49]} 21. Qd3 {[%emt 0:05:14] Rd8+ would now be deadly.} Ne8 {[%emt 0:07:10]} 22. Qe3 {[%emt 0:13:48]} (22. Nxb5 Rxc2+ (22... Bc4 23. Rxc4 Rxc4 24. Nc3 $14) 23. Kb1 Bc4 24. Qxc2 Ba2+ 25. Kxa2 Rxc2 $11) 22... Qc7 {[%emt 0:03:21]} 23. h3 {[%emt 0:01:08]} (23. Bxb5 $2 Rxb5 (23... Qxh2 $2 24. Rd8 $18) 24. Qg3 Qxg3 25. hxg3 Rg5 $19) 23... h6 {[%emt 0:00:20]} 24. R1d2 {[%emt 0:01:43]} (24. Bxb5 $2 Rxb5 25. Qd3 Rg5 $19) 24... Rb8 {[%emt 0:07:31]} 25. Rb4 {[%emt 0:02:37]} Nd6 {[%emt 0:05:29]} 26. Nxa4 {[%emt 0:06:42]} Rg5 {[%emt 0:00:05] [#]} 27. g4 $1 {[%emt 0:03:48][%cal Oe3g3]} bxa4 {[%emt 0:07:52] [#]} (27... Nc4 28. Bxc4) 28. Rxb8+ $1 {[%emt 0:00:11]} Qxb8 {[%emt 0:00:04]} 29. Qf4 {[%emt 0:01:51]} Bxg4 $2 {[%emt 0:00:27]} (29... Qa7) 30. hxg4 $18 {[%emt 0:01:58]} (30. Qxd6 $2 {perishes.} Qxd6 31. Rxd6 Bxe2 $19) 30... Rg6 {[%emt 0:00:03]} 31. e5 {[%emt 0:00:43][%csl LRa4,LRd6]} Ne8 {[%emt 0:00:16]} 32. Bc4 {[%emt 0:03:35]} Nf6 {[%emt 0:02:12] [#]} 33. Bxf7+ $1 {[%emt 0:00:47][%mdl 512]} 1-0

[Event "German Bundesliga 2024-25"]
[Site "Germany"]
[Date "2025.01.12"]
[Round "6.1"]
[White "Ivic, Velimir"]
[Black "Warmerdam, Max"]
[Result "1-0"]
[Annotator "TA"]
[ECO "B06"]
[WhiteElo "2622"]
[BlackElo "2653"]
[PlyCount "81"]
[EventDate "2024.09.27"]
[EventType "team-tourn"]
[EventCountry "GER"]
[SourceTitle "playchess.com"]
[Source "ChessBase"]
[SourceQuality "1"]
[WhiteTeam "Werder Bremen"]
[BlackTeam "SG Solingen"]
[TimeControl "40/5400+30:1800+30"]

{[%evp 9,81,33,28,23,23,2,0,0,0,0,0,-7,0,-8,0,-19,-20,-21,0,-56,-10,-8,-16,-16,16,-4,6,0,20,29,21,4,18,0,0,0,7,-25,-31,-64,-63,-76,-24,-46,-40,-45,-64,-62,-77,-84,-69,-77,25,14,66,43,68,48,125,68,73,85,23,37,7,-143,114,139,292,194,906,902,870,865]} 1. e4 {[%emt 0:00:11]} g6 {[%emt 0:00:08]} 2. d4 {[%emt 0:00:27]} d6 {[%emt 0:00:13]} 3. Nc3 {[%emt 0:01:59]} Bg7 {[%emt 0:00:13]} 4. Be3 {[%emt 0:01:51]} a6 {[%emt 0:00:17]} 5. h4 {[%emt 0:00:55]} h5 {[%emt 0:00:12]} 6. Nf3 {[%emt 0:06:50]} Nf6 {[%emt 0:02:04]} 7. Bd3 {[%emt 0:07:33]} O-O {[%emt 0:07:01]} 8. Qd2 {[%emt 0:05:19]} Ng4 {[%emt 0:12:31]} 9. Bg5 {[%emt 0:01:11]} c5 {[%emt 0:08:26]} 10. d5 {[%emt 0:08:23]} b5 {[%emt 0:03:47]} 11. O-O {[%emt 0:04:04]} Nd7 {[%emt 0:04:07]} 12. Rfe1 {[%emt 0:01:18]} Re8 {[%emt 0:06:22]} 13. Bf1 {[%emt 0:04:57]} Qc7 {[%emt 0:09:37]} 14. Rad1 {[%emt 0:12:32]} (14. Nd1 $11) 14... Ndf6 {[%emt 0:04:26]} (14... b4 $15 15. Ne2 Bxb2) 15. Bf4 $11 {[%emt 0:01:22]} b4 {[%emt 0:00:36]} 16. Nb1 $1 {[%emt 0:01:11]} Bb7 {[%emt 0:04:21]} 17. c4 {[%emt 0:02:12]} Rad8 {[%emt 0:05:12]} 18. Qc2 {[%emt 0:05:30]} e5 {[%emt 0:01:15]} 19. Bc1 {[%emt 0:00:13]} Bc8 {[%emt 0:02:30]} 20. Ng5 {[%emt 0:02:04]} Nh7 {[%emt 0:01:49]} 21. Nxh7 {[%emt 0:01:35]} Kxh7 {[%emt 0:00:18]} 22. f3 {[%emt 0:00:07]} Nh6 {[%emt 0:00:58]} 23. a3 {[%emt 0:01:30]} a5 {[%emt 0:00:28]} 24. axb4 {[%emt 0:00:27]} axb4 {[%emt 0:00:17]} 25. Bd3 {[%emt 0:00:30]} Qe7 {[%emt 0:03:37]} ({Black should try} 25... Rg8 $17) 26. Bg5 {[%emt 0:03:50]} f6 {[%emt 0:03:09]} 27. Be3 {[%emt 0:00:09]} Rg8 {[%emt 0:02:02]} 28. Nd2 {[%emt 0:00:46]} Rdf8 {[%emt 0:02:20]} 29. Ra1 {[%emt 0:05:16] [#]} g5 $1 {[%emt 0:01:38]} 30. Bf2 {[%emt 0:02:06] [#]} Bh8 {[%emt 0:03:16]} (30... Kh8 $1 $17) 31. Nf1 $36 {[%emt 0:01:38][%mdl 2048] White is more active.} g4 {[%emt 0:05:22] [#]} (31... Bg7 $11) 32. f4 $1 $14 {[%emt 0:03:35]} exf4 {[%emt 0:00:45]} 33. g3 $1 {[%emt 0:02:45]} fxg3 {[%emt 0:02:05]} (33... Qc7 $14) 34. Bxg3 {[%emt 0:02:40]} ({Better is} 34. Nxg3 $16 {[%cal Of2e3] Be3! would now be deadly.} Qe5 35. Kg2) 34... f5 {[%emt 0:00:51]} 35. exf5 {[%emt 0:01:41]} Bd4+ {[%emt 0:00:03]} 36. Kg2 $1 {[%emt 0:04:56]} Qf6 {[%emt 0:00:24][%cal Oh7h8]} 37. Nd2 {[%emt 0:01:53]} ({White has to play} 37. Ra8 $1 $11 b3 (37... Nxf5 $2 38. Rxc8 b3 39. Bxf5+ Qxf5 40. Qxf5+ Rxf5 41. Rxg8 $18) (37... Bxf5 38. Re6 $11) (37... Bxb2 $2 38. Rxc8 Rxc8 39. Re6 $18) 38. Qb1 Bxf5 (38... Nxf5 $2 39. Rxc8 Kh8 40. Rxf8 $18) 39. Re6) 37... b3 $2 {[%emt 0:03:05][%mdl 8192]} (37... Bxf5 $6 38. Re6 Bxd3 39. Qxd3+ Qf5 40. Qb3 $11) (37... Bxb2 $2 38. Ne4 Bxa1 (38... Qd4 $2 39. Ra7+ Rg7 40. Ra8 $18) 39. Nxf6+ Bxf6 40. Bxd6 $18) (37... Nxf5 $17 {[%cal Oh7h8] keeps the pressure on. aiming for ...Kh8!.} 38. Bxf5+ Bxf5) 38. Nxb3 $16 {[%emt 0:00:39]} Bxb2 $2 {[%emt 0:01:50]} (38... Bxf5 $16 {keeps fighting.} 39. Nxd4 (39. Re6 Bxd3 40. Ra7+ Rg7 $11) 39... cxd4 (39... Qxd4 $2 {loses.} 40. Bxf5+ Nxf5 41. Bxd6 $18)) 39. Ra7+ {[%emt 0:02:44]} Kh8 $2 {[%emt 0:01:26]} (39... Rg7 40. Rxg7+ Kxg7) 40. Ree7 $18 {[%emt 0:00:36]} Rg7 {[%emt 0:00:42]} 41. Rxg7 {[%emt 0:30:16]} 1-0